Cogmind - Beta 14 @@@ ROGUE MODE // 2024.08.17 @ 11:02:43 Player: dorusv Result: Destroyed by G-47 Trooper with Particle Gun Performance ------------- Evolutions (2) 1000 Regions Visited (5) 1000 Robots Destroyed (25) 125 Value Destroyed (636) 636 Prototype IDs (3) 60 Alien Tech Used (0) 0 Bonus (-2529) -2529 TOTAL SCORE: 292 Bonus ------- Friendly Fire -2529 Cogmind --------- Core Integrity 0/550 Matter 204/300 Energy 100/100 System Corruption 0% Temperature Cool (45) Movement Walking (130) Location -8/Materials Parts ------- > --- POWER (3) -------- (None) > --- PROPULSION (2) --- Titanium Leg > --- UTILITY (4) ------ Structural Scanner Seismic Detector > --- WEAPON (2) ------- (None) > --- INVENTORY (5) ---- Actuator Array EMP Blaster Peak State ------------ > --- POWER ------------ Heavy Ion Engine Light Deuterium Engine Light Deuterium Engine > --- PROPULSION ------- Titanium Leg Titanium Leg > --- UTILITY ---------- Small Storage Unit Structural Scanner ECM Suite Sensor Drone Bay > --- WEAPON ----------- Particle Gun Light EM Pulse Cannon > --- INVENTORY -------- Titanium Leg Titanium Leg Seismic Detector Actuator Array EMP Blaster Mini Grenade Launcher [Rating: 31] Favorites ----------- Power Light Ion Engine Engine Light Ion Engine Propulsion Aluminum Leg Leg Aluminum Leg Utility ECM Suite Device ECM Suite Storage Small Storage Unit Weapon Light Assault Rifle Energy Gun Particle Gun Energy Cannon Light EM Pulse Cannon Ballistic Gun Light Assault Rifle Launcher EMP Blaster Build | -11 -10 -10 -9 -9 -8 ------- Run | Yrd Mat Min Mat Min Mat Slots Evolved 4 | . . . 2 . 2 Power 2 | . . . . . 2 Propulsion . | . . . . . . Utility 2 | . . . 2 . . Weapon . | . . . . . . Parts Attached 42 | 9 1 12 11 1 8 Power 10 | 1 . 4 3 . 2 Engine 10 | 1 . 4 3 . 2 Core . | . . . . . . Reactor . | . . . . . . Propulsion 10 | 3 . 2 2 . 3 Treads . | . . . . . . Leg 10 | 3 . 2 2 . 3 Wheel . | . . . . . . Hover . | . . . . . . Flight . | . . . . . . Utility 11 | 3 1 3 2 1 1 Device 8 | 2 . 3 1 1 1 Storage 3 | 1 1 . 1 . . Processor . | . . . . . . Hackware . | . . . . . . Protection . | . . . . . . Artifact . | . . . . . . Weapon 11 | 2 . 3 4 . 2 Energy Gun 5 | . . 3 2 . . Energy Cannon 1 | . . . 1 . . Ballistic Gun 2 | 2 . . . . . Ballistic Cannon . | . . . . . . Launcher 3 | . . . 1 . 2 Special Weapon . | . . . . . . Impact Weapon . | . . . . . . Slashing Weapon . | . . . . . . Piercing Weapon . | . . . . . . Special Melee Weapon . | . . . . . . Unidentified Prototypes 3 | . . . 2 1 . Parts Lost 20 | . 1 7 1 . 11 Power 5 | . . 1 1 . 3 Propulsion 4 | . . 2 . . 2 Utility 6 | . 1 2 . . 3 Weapon 5 | . . 2 . . 3 Highest Loss Streak 11 | . 1 2 1 . 11 To Critical Strikes . | . . . . . . Average Slot Usage (%) 94 | . 100 91 95 100 93 Engine 14 | . 14 13 11 11 25 Leg 22 | . 28 23 22 22 16 Device 27 | . 18 25 30 33 28 Storage 6 | . 9 1 11 11 6 Energy Gun 6 | . . 5 10 11 7 Energy Cannon 2 | . . . 2 11 6 Ballistic Gun 11 | . 28 19 . . . Launcher 1 | . . . 7 . 1 Peak Build Rating 31 | 9 9 9 22 26 31 Average Rating 14 | 5 8 7 18 24 29 On Entrance 12 | . 9 9 7 21 26 Naked Turns . | . . . . . . Heaviest Build 47 | 11 11 13 28 37 47 Greatest Support 34 | 20 20 20 34 34 34 Greatest Overweight (x) 11 | . . 1 . 1 11 Average Overweight (x) . | . . . . . 1 Largest Inventory Capacity 8 | 8 8 8 8 8 8 Average Capacity 6 | 7 7 5 8 8 7 Most Carried 8 | 3 3 5 8 8 7 Average Carried 4 | 1 2 3 6 7 4 Final Capacity 8 | 5 8 5 8 8 5 Final Carried 8 | 3 3 4 8 8 2 Class Distribution -------------------- 46% | Infiltrator-Mutant 41% | Mutant 11% | Scavenger-Mutant Dominant Class ---------------- Mutant | -10/Materials Mutant | -10/Mines Infiltrator-Mutant | -9/Materials Infiltrator-Mutant | -9/Mines Infiltrator-Mutant | -8/Materials Resources | -11 -10 -10 -9 -9 -8 ----------- Run | Yrd Mat Min Mat Min Mat Matter Collected 694 | 283 63 191 140 . 17 Remotely . | . . . . . . Salvage Created 1001 | 104 94 225 352 . 226 Parts 58 | 7 4 6 29 . 12 Haulers Intercepted . | . . . . . . Recyclers Shooed 4 | . . . 3 . 1 Parts Field Recycled . | . . . . . . Retrieved Matter . | . . . . . . Parts Self-Destructed . | . . . . . . Prevented . | . . . . . . Kills | -11 -10 -10 -9 -9 -8 ------- Run | Yrd Mat Min Mat Min Mat Combat Hostiles Destroyed 23 | . 2 10 7 . 4 Guns 14 | . 2 10 1 . 1 Cannons 2 | . . . 1 . 1 AOE 7 | . . . 5 . 2 Classes Destroyed 8 | 2 1 1 3 . 1 Builder 4 | . . . 2 . 2 Tunneler 2 | 2 . . . . . Recycler 3 | 1 . . 1 . 1 Drone 13 | . . . . . 13 Swarmer 3 | . . . 3 . . Grunt 12 | . 2 3 3 . 4 Sentry 1 | . . . 1 . . Assembled 7 | . . 7 . . . Best Kill Streak 5 | 2 2 2 3 . 5 Combat Bots Only 2 | . 2 2 2 . 2 Max Kills in Single Turn 8 | 1 1 1 2 . 8 Gunslinging . | . . . . . . Exploded 2 | . . . 2 . 1 Melee . | . . . . . . Uniques/NPCs Destroyed . | . . . . . . Combat | -11 -10 -10 -9 -9 -8 -------- Run | Yrd Mat Min Mat Min Mat Hostile Shots Fired 241 | . 27 75 67 . 72 Missed 72 | . 14 25 16 . 17 Damage Taken 2921 | . 272 720 531 . 1398 Core 880 | . 43 202 81 . 554 Absorbed by Shields . | . . . . . . Regen/Repaired (Parts) 101 | . . . . . 101 Core Remaining (%) 60 | 100 . 2 . 79 . Volleys Fired 110 | 14 14 46 19 . 17 Largest 2 | 2 2 2 2 . 2 Hottest 121 | 40 40 50 98 . 121 Shots Fired 195 | 28 28 84 29 . 26 Gun 159 | 28 28 84 10 . 9 Cannon 18 | . . . 9 . 9 Launcher 18 | . . . 10 . 8 Special . | . . . . . . Kinetic 133 | 28 28 77 . . . Thermal 26 | . . 7 10 . 9 Explosive 8 | . . . . . 8 Electromagnetic 28 | . . . 19 . 9 Robot Hit Streak 10 | 8 10 8 5 . 10 Robot Miss Streak 5 | 2 3 5 3 . 2 Penetration Max . | . . . . . . Secondary Targets 1 | . 1 . . . . Max Gunslinging Chain 1 | . 1 . . . . Shots Hit Robots 121 | 18 20 49 17 . 17 Core Hits 94 | 6 8 30 15 . 35 Critical Kills 1 | . . 1 . . . Critical Parts Destroyed . | . . . . . . Critical Strikes 2 | . . 1 1 . . Burn 1 | . . . 1 . . Destroy 1 | . . 1 . . . Melee Attacks . | . . . . . . Impact . | . . . . . . Slashing . | . . . . . . Piercing . | . . . . . . Sneak Attacks . | . . . . . . Combat Hostiles . | . . . . . . Follow-up Attacks . | . . . . . . Damage Inflicted 3437 | 160 152 428 745 . 1952 Guns 949 | 152 152 428 111 . 106 Cannons 278 | . . . 132 . 146 Explosions 2197 | . . . 498 . 1699 Melee . | . . . . . . Ramming 13 | 8 . . 4 . 1 Kinetic 668 | 152 152 364 . . . Thermal 460 | . . 64 180 . 216 Explosive 1589 | . . . . . 1589 Electromagnetic 707 | . . . 561 . 146 Impact . | . . . . . . Slashing . | . . . . . . Piercing . | . . . . . . Highest Corruption 1 | . 1 1 . . . Average Corruption 1 | . 1 1 . . . Corruption Purged . | . . . . . . Corruption Blocked . | . . . . . . Effects 4 | . . 4 . . . Matter Fused 1 | . . 1 . . . Heat Flow Errors 2 | . . 2 . . . Energy Discharges 1 | . . 1 . . . Overload Shots . | . . . . . . Overflow Damage 178 | . . . 13 . 165 Projectiles 10 | . . . 10 . . Explosions 168 | . . . 3 . 165 Melee . | . . . . . . Knockbacks 1 | 1 . . . . . Impact 1 | 1 . . . . . Kinetic . | . . . . . . Secondary . | . . . . . . Self-Inflicted Damage 229 | . . . 45 . 184 Shots 9 | . . . 4 . 5 Rammed . | . . . . . . Targets Rammed 3 | 1 . . 1 . 1 Kicked 3 | 1 . . 1 . 1 Crushed . | . . . . . . Highest Temperature 707 | . 9 174 60 . 707 Average Temperature 137 | . 9 30 18 . 364 Received Heat Transfer 1158 | . 96 318 123 . 621 Effects 27 | . . . . . 27 Shutdowns 7 | . . . . . 7 Energy Bleed 2 | . . . . . 2 Short Circuit 6 | . . . . . 6 Damage (minor) 2 | . . . . . 2 Damage (major) 6 | . . . . . 6 Damage (core) 4 | . . . . . 4 Siege Activations . | . . . . . . Robots Corrupted . | . . . . . . Combat Hostiles . | . . . . . . Parts Fried 1 | . . . . . 1 Impact Corruptions . | . . . . . . Robots Melted . | . . . . . . Combat Hostiles . | . . . . . . Parts Melted . | . . . . . . Heat Transferred 1127 | . . 185 433 . 509 Parts Sabotaged . | . . . . . . Parts Stolen . | . . . . . . Parts Stripped . | . . . . . . Power Chain Reactions 4 | . . . 3 . 1 Alert | -11 -10 -10 -9 -9 -8 ------- Run | Yrd Mat Min Mat Min Mat Peak Influence 154 | 15 139 99 154 25 148 Initial 54 | . 9 54 . 25 9 Average 43 | 6 88 38 49 25 44 Maximum Alert Level . | . . . . . . Low Security (%) 100 | 100 100 100 100 100 100 Level 1 . | . . . . . . Level 2 . | . . . . . . Level 3 . | . . . . . . Level 4 . | . . . . . . Level 5 . | . . . . . . High Security . | . . . . . . Max Security . | . . . . . . Squads Dispatched 4 | . 1 . 1 . 2 Investigation 3 | . 1 . 1 . 1 Extermination . | . . . . . . Reinforcement 1 | . . . . . 1 Assault . | . . . . . . Garrison . | . . . . . . Intercept . | . . . . . . Searches Triggered . | . . . . . . Construction Impeded 1 | . . . . . 1 Haulers Reinforced . | . . . . . . Active Scanning Responses . | . . . . . . Cargo Convoy Interrupts . | . . . . . . Stealth | -11 -10 -10 -9 -9 -8 --------- Run | Yrd Mat Min Mat Min Mat Distress Signals 7 | . 1 2 2 . 2 Communications Jammed . | . . . . . . Distress Signals . | . . . . . . Times Spotted 65 | . 9 24 16 . 16 Peak Tracking Total 16 | . 3 16 5 . 9 Tactical Retreats 11 | . 1 5 3 . 2 Traps | -11 -10 -10 -9 -9 -8 ------- Run | Yrd Mat Min Mat Min Mat Traps Triggered 1 | . 1 . . . . Indirectly . | . . . . . . Trap Hack Attempts . | . . . . . . Triggered . | . . . . . . Disarmed . | . . . . . . Reprogrammed . | . . . . . . Reused . | . . . . . . Traps Extracted . | . . . . . . Installed . | . . . . . . Triggered . | . . . . . . Machines | -11 -10 -10 -9 -9 -8 ---------- Run | Yrd Mat Min Mat Min Mat Machines Disabled 1 | . . . . . 1 Max in Single Turn 1 | . . . . . 1 Machines Repaired . | . . . . . . Machines Dismantled . | . . . . . . Machines Sabotaged . | . . . . . . Overloaded Fab Kills . | . . . . . . Hacking | -11 -10 -10 -9 -9 -8 --------- Run | Yrd Mat Min Mat Min Mat Machines Accessed 6 | . 3 . 1 1 1 Terminals 4 | . 3 . 1 . . Fabricators . | . . . . . . Repair Stations 1 | . . . . . 1 Recycling Units . | . . . . . . Scanalyzers . | . . . . . . Garrison Access . | . . . . . . Total Hacks 19 | . 10 . 3 1 5 Successful 10 | . 3 . 1 1 5 Failed 9 | . 7 . 2 . . Catastrophic 5 | . 3 . 2 . . Database Lockouts . | . . . . . . Manual 12 | . 9 . 3 . . Terminals 13 | . 10 . 3 . . Fabricators . | . . . . . . Repair Stations 5 | . . . . . 5 Recycling Units . | . . . . . . Scanalyzers . | . . . . . . Garrison Access . | . . . . . . Terminal Hacks 5 | . 3 . 1 1 . Open Door 1 | . . . . 1 . Dispatch Records 1 | . 1 . . . . Patrol Status 2 | . 1 . 1 . . Garrison Status 1 | . 1 . . . . Fabricator Hacks . | . . . . . . Repair Station Hacks 5 | . . . . . 5 Scan Component 3 | . . . . . 3 Repair 2 | . . . . . 2 Recycling Unit Hacks . | . . . . . . Scanalyzer . | . . . . . . Garrison Access Hacks . | . . . . . . Unauthorized Hacks . | . . . . . . Terminals . | . . . . . . Fabricators . | . . . . . . Repair Stations . | . . . . . . Recycling Units . | . . . . . . Scanalyzers . | . . . . . . Garrison Access . | . . . . . . Data Cores Recovered . | . . . . . . Used . | . . . . . . Hacking Detections 5 | . 3 . 1 . 1 Full Trace Events 5 | . 3 . 1 . 1 Feedback Events 1 | . 1 . . . . Corruption 1 | . 1 . . . . Feedback Blocked . | . . . . . . Robot Schematics Acquired . | . . . . . . Robots Built . | . . . . . . Authchips . | . . . . . . Time . | . . . . . . Total Robot Build Rating . | . . . . . . Part Schematics Acquired . | . . . . . . Parts Built . | . . . . . . Authchips . | . . . . . . Time . | . . . . . . Total Part Build Rating . | . . . . . . Parts Repaired 2 | . . . . . 2 Time 76 | . . . . . 76 Parts Recycled . | . . . . . . Recycled Matter . | . . . . . . Retrieved Matter . | . . . . . . Retrieved Components . | . . . . . . Parts Scanalyzed . | . . . . . . Part Schematics Acquired . | . . . . . . Parts Damaged . | . . . . . . Bothacking | -11 -10 -10 -9 -9 -8 ------------ Run | Yrd Mat Min Mat Min Mat Used RIF Installer . | . . . . . . Robots Hacked . | . . . . . . Non-combat . | . . . . . . Combat . | . . . . . . Robot Hacks Applied . | . . . . . . Relay Couplers Released . | . . . . . . Fabnet Peak Effective % . | . . . . . . Robots Rewired . | . . . . . . Allies Hacked . | . . . . . . Hacks Repelled . | . . . . . . Allies | -11 -10 -10 -9 -9 -8 -------- Run | Yrd Mat Min Mat Min Mat Total Allies 1 | . . 1 . . . Largest Group 1 | . . 1 1 . . Highest-Rated Group 31 | . . 31 31 . . Highest-Rated Ally 31 | . . 31 31 . . Total Orders . | . . . . . . Ally Attacks 4 | . . . 4 . . Total Damage 62 | . . . 62 . . Kills . | . . . . . . Allies Corrupted . | . . . . . . Allies Melted . | . . . . . . Intel | -11 -10 -10 -9 -9 -8 ------- Run | Yrd Mat Min Mat Min Mat Robot Analysis Total . | . . . . . . Derelict Logs Recovered . | . . . . . . Drone Launches 20 | . . . . 20 . Drone Recoveries 4 | . . . . . 4 Exploration | -11 -10 -10 -9 -9 -8 ------------- Run | Yrd Mat Min Mat Min Mat Turns Passed 2354 | 219 276 825 537 238 259 Spaces Moved 1380 | 140 199 520 311 132 78 Core 6 | 3 . . . . 3 Treads . | . . . . . . Legs 1374 | 137 199 520 311 132 75 Wheels . | . . . . . . Hover . | . . . . . . Flight . | . . . . . . Fastest Speed 50 | 50 120 120 120 130 130 Average Speed 135 | 118 120 131 127 169 207 Slowest Speed 600 | 120 120 190 130 200 600 Overloaded Moves . | . . . . . . Propulsion Burnouts . | . . . . . . Robots Hopped 1 | . . . . . 1 Cave-ins Triggered . | . . . . . . Exploration Rate (%) 29 | 8 40 61 24 31 11 Regions Visited 5 Branch Regions 2 Pre-discovered Areas . | . . . . . . Known Exits Taken 1 | . . . . 1 . Unknown Exits Taken 4 | 1 1 1 1 . . Scrap Searched 1 | . . 1 . . . Spaces Dug . | . . . . . . Terrain Destroyed 64 | . . . 13 . 51 Melee . | . . . . . . Projectile . | . . . . . . AOE 64 | . . . 13 . 51 Terrain Rammed . | . . . . . . Walls Destroyed . | . . . . . . Machines Disabled . | . . . . . . Actions | -11 -10 -10 -9 -9 -8 --------- Run | Yrd Mat Min Mat Min Mat Total 1694 | 167 214 594 424 148 147 Wait 132 | . . 9 69 14 40 Move 1373 | 139 198 519 310 131 76 Hop 1 | . . . . . 1 Pick Up 13 | 2 1 2 6 . 2 Fast Attach 22 | 8 . 6 6 1 1 Attach 13 | 1 1 4 2 . 5 Detach 8 | 2 . 3 1 1 1 Swap 7 | . . 2 3 . 2 Drop 12 | . . 3 7 1 1 Fire 110 | 14 14 46 19 . 17 Melee . | . . . . . . Ram . | . . . . . . Kick 3 | 1 . . 1 . 1 Crush . | . . . . . . Escape Stasis . | . . . . . . Rewire . | . . . . . . Trap . | . . . . . . Miscellaneous . | . . . . . . Route ------- -11/Scrapyard -10/Materials -10/Mines -9/Materials -9/Mines -8/Materials History --------- Turn | Location | Event 2 | -11/Scrapyard | Met Revision 17 16 | -11/Scrapyard | Discovered new exit (range 16) 220 | -11/Scrapyard | Entered Materials 327 | -10/Materials | Build established: Mutant 470 | -10/Materials | Discovered new exit (range 15) 496 | -10/Materials | Entered Mines 500 | -10/Mines | Assembled infested the area 505 | -10/Mines | Assisted by a Guerilla fighting off Assembled 519 | -10/Mines | Met a Derelict bent on vengeance 877 | -10/Mines | Core integrity fell below 50% 1030 | -10/Mines | Core integrity fell below 20% 1171 | -10/Mines | Discovered new exit (range 9) 1174 | -10/Mines | Escorted by a lone wolf Derelict 1321 | -10/Mines | Entered Materials 1321 | -9/Materials | Accompanied by 1 ally 1321 | -9/Materials | Evolved 2 slots: Utility x2 1636 | -9/Materials | Discovered new exit (range 12) 1731 | -9/Materials | Build established: Infiltrator-Mutant 1858 | -9/Materials | Entered Mines 1926 | -9/Mines | Found the Drone Emporium 1935 | -9/Mines | Found Prototype Device 1935 | -9/Mines | Identified Sensor Drone Bay 1954 | -9/Mines | Discovered new exit (range 16) 1989 | -9/Mines | Identified exit to Materials 2096 | -9/Mines | Entered Materials 2096 | -8/Materials | Accompanied by 20 allies 2096 | -8/Materials | Evolved 2 slots: Power x2 2207 | -8/Materials | Repaired Titanium Leg 2245 | -8/Materials | Repaired Titanium Leg 2302 | -8/Materials | Core integrity fell below 50% 2322 | -8/Materials | Core integrity fell below 20% 2355 | -8/Materials | Destroyed by G-47 Trooper with Particle Gun Last Messages --------------- 02341_ Lgt. Deuterium Engine destroyed. 02341_ Mni. Grenade Launcher destroyed. 02341_ Destroyed Mni. Grenade Launcher. 02343_ K-01 Serf collects debris. 02345_ Sensor Drone retrieved by Sensor Drone Bay. 02346_ K-01 Serf collects debris. 02347_ Sensor Drone retrieved by Sensor Drone Bay. 02349_ Critical hit (Burn: +37). 02349_ K-01 Serf collects debris. 02352_ Sensor Drone retrieved by Sensor Drone Bay. 02352_ Critical hit (Burn: +37). 02353_ The unstable cave ceiling collapses. 02353_ Broken Titanium Leg destroyed. 02353_ K-01 Serf collects debris. 02354_ Kicked G-47 Trooper. 02355_ Sensor Drone Bay destroyed. 02355_ Critical hit (Burn: +37). Map ----- +----------------------------------------------------+ | ?????????????????????????????????????????????????? | | ?????????????????????????????????????????????????? | | ?????????????????????????????????????????????????? | | ?????????????????????????????????????????????????? | | ????????????????###??#######?????????????????????? | | ????????????????############?????????????????????? | | ????????????????## """ ##?????????????????????? | | ????????????????## """"" ######?????????????????? | | ????????????????## """"" ######?????????????????? | | ????????????????## """"" # ##?????????????????? | | ????????????????## """ # ##?????????????????? | | ????????????????## # ##?????????????????? | | ????????????????## + ##?????????????????? | | ????????????????## # ##?????????????????? | | ????????????????## # ###???????????????? | | ????????????????########### ############## ? | | ????????????????########## ############# | | ??????????????????######## ! [! | | ????????????????########## a | | ????????????????#### # k r ! | | ???????????????###=| ###/############# | | ?????????????#####% ####### # ??? | | ???????########## # # ?????? | | ?????? ######## # # ?????? | | ?????? " """ # """ # ?????? | | ????? T % g@ """ + """"" # ?????? | | ?????? a g = "n """b# """"" # ?????? | | ??????? ####### g g% g # """"" # ?????? | | ??????? ###### ########## """ # ?????? | | ???????????### ######################??????? | | ???????????### ! ????? ########?????????? | | ???????????## ???????????????????????????? | | ?????????? ## k ???????????????????????????? | | ????????# # ???????????????????????????? | | ????????# " ???r??????????????????????? | | ????????# """ ## ###??????????????????????????? | | ????????#?"" ## k## ???????????????????????????? | | ???????????""?## ##????????????????????????????? | | ??????????????## ??????????????????????????????? | | ??????????????## ??????????????????????????????? | | ??????????????## ??????????????????????????????? | | ???????????????? ???????????????????????????????? | | ?????????????????????????????????????????????????? | | ????????????????????o????????????????????????????? | | ?????????????????????????????Y???????????????????? | | ?????????????????????????????????????????????????? | | ?????????????????????????????????????????????????? | | ?????????????????????????????????????????????????? | | ?????????????????????????????????????????????????? | | ?????????????????????????????????????????????????? | +----------------------------------------------------+ Best States ------------- Heat Dissipation 31 Energy Generation 32 Energy Capacity 360 Matter Stores 300 Matter Capacity 300 Sight Range 16 Terrain Scan Range 16 Terrain Scan Density 10 ECM Strength 1 Evasion (%) 55 Item Schematics ----------------- None Robot Schematics ------------------ None Fabricated ------------ Nothing Alien Tech Used ----------------- None Achievements -------------- Backstab Collateral Damage Release The Drones! Slippery One Challenges ------------ None Game ------ Seed NeutrinoThunderMagmablaster Manual? 0 Play Time 00:27:21 Cumulative 5.6 hours Start 2024.08.17 @ 10:33:54 End 2024.08.17 @ 11:02:43 Sessions 1 Manual Loads 0 Difficulty Rogue Special Mode None Game No. 23 Rogue 20 Adventurer 3 Explorer 0 Win Type - Total 0 Types 0/0/0/0/0/0/0/0/0 Lore% 9 Gallery% 12 Achievement% 16 Wizard Run 0 Options --------- Layout 1 ASCII 0 Keyboard 1 Movement Arrows Keybinds 0 Fullscreen 1 Font 28/Smallcaps Map View 50x43 Zoom Use 0% Tactical HUD 1 Map Filters NONE Filters NONE Steam 1 RUN: 9c7cbb04-d32e-4241-8ec6-5bf7ca501386